bitfinex/quotes_SOLUSD_20241008
["timestamp","ask_amount","ask_price","bid_price","bid_amount"]
[1728365444877,6.9827,143.21,143.16,6.9851]
[1728365445072,6.9841,143.19,143.14,24.451]
[1728365445471,16.4357,143.22,143.14,17.465]
[1728365445768,16.4357,143.22,143.15,6.9856]
[1728365445769,6.9833,143.2,143.15,6.9856]
[1728365446717,15.0451,143.26,143.19,20.0]
[1728365447000,15.0451,143.26,143.18,20.48900753]
[1728365447001,15.0451,143.26,143.21,6.9827]
[1728365447369,15.0451,143.26,143.21,8.37903791]
[1728365447996,15.0451,143.26,143.21,6.9827]
[1728365449096,15.0451,143.26,143.22,8.37848816]
[1728365449768,6.1345,143.29,143.22,1.39628816]
[1728365449994,6.1345,143.29,143.24,6.9812]
[1728365450785,13.1137,143.29,143.23,6.9817]
[1728365451218,13.1137,143.29,143.24,1.39616164]
[1728365451375,13.1137,143.29,143.23,6.9817]
[1728365451868,6.1345,143.29,143.21,17.4564]
[1728365452591,33.05919,143.28,143.16,17.4617]
[1728365452798,24.027864,143.25,143.11,16.28997711]
[1728365452987,6.9837,143.19,143.13,24.4525]
[1728365454085,6.9832,143.2,143.14,8.38310993]
[1728365454788,6.9832,143.2,143.14,6.9861]
[1728365455881,6.9832,143.2,143.14,8.38304987]
[1728365456191,6.9832,143.2,143.14,6.9861]
[1728365456685,6.9832,143.2,143.15,1.39694989]
[1728365456892,6.9832,143.2,143.14,6.9861]
[1728365458149,39.2566,143.26,143.15,24.027864]
[1728365458290,39.2566,143.26,143.16,6.9851]
[1728365458469,6.9823,143.22,143.16,6.9851]
[1728365460595,6.9818,143.23,143.17,6.9845]
[1728365460863,6.9818,143.23,143.16,23.776884]
[1728365460864,6.9809,143.25,143.19,6.9833]
[1728365461280,28.7851,143.26,143.2,1.39649724]
[1728365461481,28.7851,143.26,143.21,6.9826]
[1728365462374,15.4842,143.26,143.21,6.9826]
[1728365462777,15.4842,143.26,143.19,6.9833]
[1728365463004,15.4842,143.26,143.2,23.776884]
[1728365463394,6.981,143.25,143.2,23.776884]
[1728365464893,15.4842,143.26,143.18,17.58589]
[1728365465101,15.4842,143.26,143.16,20.0]
[1728365465287,6.983,143.21,143.16,20.0]
[1728365465491,6.9823,143.22,143.16,26.9848]
[1728365466104,6.9828,143.21,143.16,6.9848]
[1728365466399,32.9361,143.26,143.17,8.38132948]
[1728365466400,6.9823,143.22,143.17,8.38132948]
[1728365466580,32.9361,143.26,143.17,8.38132948]
[1728365466581,6.9822,143.23,143.17,8.38132948]
[1728365466785,6.9822,143.23,143.18,8.38061725]
[1728365467072,32.9361,143.26,143.18,6.9839]
[1728365467201,6.9813,143.24,143.18,6.9839]
[1728365467904,6.9813,143.24,143.19,1.39652221]
[1728365468097,6.9813,143.24,143.19,8.38012221]
[1728365468599,6.9808,143.25,143.2,30.759784]
[1728365468808,22.4646,143.26,143.21,6.9825]
[1728365469990,6.9808,143.25,143.2,48.217584]
[1728365470187,22.4645,143.26,143.21,7.23328]
[1728365470393,23.9336,143.29,143.21,7.23328]
[1728365470394,6.9798,143.27,143.22,8.37830022]
[1728365470896,6.9798,143.27,143.21,0.25098]
[1728365470897,6.4862,143.29,143.21,0.25098]
[1728365471080,6.9803,143.26,143.21,7.23358]
[1728365473000,6.9803,143.26,143.22,1.39620228]
[1728365473239,6.9803,143.26,143.21,7.23358]
[1728365473389,6.4862,143.29,143.22,6.9822]
[1728365473390,6.9799,143.27,143.22,6.9822]
[1728365475302,6.4862,143.29,143.23,23.776884]
[1728365475601,6.9792,143.29,143.24,6.9811]
[1728365475905,6.9792,143.29,143.25,1.39599235]
[1728365476199,6.9792,143.29,143.24,8.37709028]
[1728365476391,15.5219,143.3,143.24,8.37709028]
[1728365476584,6.9793,143.28,143.23,23.776884]
[1728365476786,6.9793,143.28,143.24,1.39602728]
[1728365477086,6.9793,143.28,143.23,30.758484]
[1728365477310,15.5219,143.3,143.22,17.4551]
[1728365477508,6.9804,143.26,143.22,17.4551]
[1728365478514,6.9804,143.26,143.22,24.4373]
[1728365479890,6.9808,143.25,143.21,6.9824]
[1728365480592,6.9808,143.25,143.2,20.0]
[1728365480796,6.9808,143.25,143.2,26.9831]
[1728365481192,6.9817,143.24,143.21,23.776884]
[1728365481391,17.449,143.28,143.2,24.027864]
[1728365481588,6.9813,143.24,143.2,24.027864]
[1728365483216,17.449,143.28,143.19,20.0]
[1728365483517,0.12549,143.29,143.19,20.0]
[1728365483518,6.9826,143.22,143.19,20.0]
[1728365483895,6.9826,143.22,143.18,26.984]
[1728365484201,6.9819,143.23,143.18,20.0]
[1728365484503,6.9819,143.23,143.19,6.9837]
[1728365485184,6.9823,143.22,143.18,44.56959]
[1728365486092,6.9819,143.23,143.19,31.011464]
[1728365486308,6.9819,143.23,143.19,6.9836]
[1728365487204,6.9819,143.23,143.18,44.56949]
[1728365487316,6.9819,143.23,143.19,1.39653105]
[1728365487603,6.9823,143.22,143.18,44.56949]
[1728365488813,6.9823,143.22,143.18,24.56949]
[1728365489512,6.9823,143.22,143.19,1.39653272]
[1728365489709,6.9818,143.23,143.19,23.776884]
[1728365491309,6.9818,143.23,143.19,30.760484]
[1728365492099,6.9814,143.24,143.19,30.760484]
[1728365493238,6.9817,143.23,143.19,30.760484]
[1728365493814,6.9817,143.23,143.18,24.56949]
[1728365494001,6.9828,143.21,143.18,23.776884]
[1728365494311,15.3788,143.24,143.14,6.2812]
[1728365494614,6.9848,143.17,143.13,6.9866]
[1728365494914,15.3788,143.24,143.12,17.4672]
[1728365494915,17.4585,143.2,143.12,17.4672]
[1728365495212,6.9852,143.16,143.12,17.4672]
[1728365495584,6.9852,143.16,143.12,24.4541]
[1728365496309,17.4549,143.23,143.14,17.4648]
[1728365496611,17.4549,143.23,143.11,50.0]
[1728365496612,15.3788,143.24,143.15,20.0]
[1728365496903,15.3788,143.24,143.17,24.027864]
[1728365497421,15.3788,143.24,143.19,6.9836]
[1728365498199,6.9802,143.27,143.22,6.9822]
[1728365498410,6.9803,143.26,143.22,6.9822]
[1728365499717,6.9803,143.26,143.21,50.759484]
[1728365501515,6.9803,143.26,143.21,43.776884]
[1728365501823,6.9803,143.26,143.22,6.9822]
[1728365502502,6.9803,143.26,143.21,43.776884]
[1728365502818,6.9809,143.25,143.21,43.776884]
[1728365503020,6.9812,143.25,143.21,1.39636684]
[1728365503315,6.9812,143.25,143.2,24.4397]
[1728365504460,6.9812,143.25,143.21,23.776884]
[1728365504506,6.9812,143.25,143.22,1.3962784]
[1728365505325,6.9812,143.25,143.21,23.776884]
[1728365506417,17.4477,143.29,143.23,23.902374]
[1728365506719,6.9805,143.26,143.22,6.9817]
[1728365507708,6.9805,143.26,143.21,23.776884]
[1728365507937,6.9805,143.26,143.21,30.759484]
[1728365508121,6.981,143.25,143.21,30.759484]
[1728365510792,6.9814,143.24,143.2,24.56549]
[1728365511012,17.4504,143.27,143.17,17.4609]
[1728365511316,6.9828,143.21,143.17,24.4455]
[1728365511754,6.9828,143.21,143.17,25.84217019]
[1728365512216,6.9823,143.22,143.17,25.84217019]
[1728365512399,6.9823,143.22,143.18,23.902374]
[1728365514623,6.9823,143.22,143.19,1.3965426]
[1728365515716,6.9819,143.23,143.19,1.3965426]
[1728365517028,6.9819,143.23,143.18,30.886574]
[1728365517521,6.9819,143.23,143.19,1.39649322]
[1728365517723,6.9814,143.24,143.19,8.50548164]
[1728365518028,708.3,143.49,143.19,8.50548164]
[1728365518029,6.9802,143.27,143.22,6.9821]
[1728365518207,6.9804,143.26,143.23,1.39613467]
[1728365518927,70.02962722,143.31,143.23,8.37773467]
[1728365518928,51.31057821,143.31,143.23,8.37773467]
[1728365519117,51.31057821,143.31,143.23,1.39613467]
[1728365519325,33.4753,143.31,143.23,1.39613467]
[1728365519733,6.979,143.29,143.25,6.9804]
[1728365519908,16.0302,143.31,143.24,30.883474]
[1728365519909,6.9794,143.28,143.24,30.883474]
[1728365520840,6.9794,143.28,143.24,23.902374]
[1728365521649,17.4465,143.3,143.22,20.0]
[1728365521931,6.9813,143.24,143.22,1.39620453]
[1728365522125,6.9818,143.23,143.21,22.5316]
[1728365522313,6.9823,143.22,143.18,6.5075]
[1728365522507,6.9823,143.22,143.19,1.39653236]
[1728365522708,6.9823,143.22,143.18,6.5075]
[1728365523141,6.9834,143.2,143.18,6.5075]
[1728365523446,6.9834,143.2,143.17,16.2136]
[1728365524228,6.9839,143.19,143.15,6.4398]
[1728365524736,6.9839,143.19,143.16,24.027864]
[1728365525036,16.2982,143.24,143.15,6.4398]
[1728365525211,6.985,143.17,143.13,15.434]
[1728365526428,6.985,143.17,143.14,23.776884]
[1728365527013,6.985,143.17,143.14,1.39694559]
[1728365528636,6.985,143.17,143.12,51.014864]
[1728365528846,6.9858,143.15,143.12,44.027864]
[1728365529146,6.9859,143.15,143.12,20.25098]
[1728365529431,17.4591,143.2,143.13,1.39710956]
[1728365530036,6.9847,143.17,143.13,1.39710956]
[1728365530714,6.9847,143.17,143.12,27.23798]
[1728365531114,6.9847,143.17,143.13,8.38367352]
[1728365531317,6.9842,143.18,143.14,30.762984]
[1728365531532,6.9842,143.18,143.15,1.3969363]
[1728365531953,6.9828,143.21,143.17,6.9846]
[1728365532231,6.9828,143.21,143.18,1.39668816]
[1728365533335,6.9819,143.23,143.18,24.027864]
[1728365533526,6.9808,143.25,143.2,30.759884]
[1728365533837,6.9808,143.25,143.21,1.39636623]
[1728365534140,6.9818,143.23,143.2,41.234884]
[1728365534634,33.6338,143.28,143.19,6.9836]
[1728365534635,6.9826,143.22,143.19,23.776884]
[1728365535450,6.9819,143.23,143.2,1.39648049]
[1728365536143,6.9819,143.23,143.19,30.760384]
[1728365536311,6.9819,143.23,143.19,23.776884]
[1728365537433,17.4536,143.24,143.18,6.32388]
[1728365537653,6.9828,143.21,143.18,6.19839]
[1728365537856,39.22839416,143.32,143.19,0.12549]
[1728365538031,6.9788,143.29,143.21,44.027864]
[1728365538221,6.9795,143.28,143.23,48.211884]
[1728365538532,6.3047,143.31,143.24,8.37723988]
[1728365538841,15.3052,143.32,143.23,48.211884]
[1728365539622,15.3052,143.32,143.21,20.0]
[1728365539623,6.9804,143.26,143.21,20.0]
[1728365539825,6.9809,143.25,143.2,26.983]
[1728365540209,6.9813,143.24,143.2,23.776884]
[1728365540514,0.12549,143.3,143.21,8.37907834]
[1728365540826,6.9798,143.27,143.22,6.9822]
[1728365541221,6.9803,143.26,143.21,6.9825]
[1728365542008,6.9798,143.28,143.22,24.027864]
[1728365542240,6.9788,143.3,143.24,23.902374]
[1728365542492,6.9788,143.3,143.25,6.9806]
[1728365542929,6.9788,143.3,143.25,8.37651055]
[1728365543935,6.9779,143.31,143.26,6.9802]
[1728365544238,15.3052,143.32,143.27,8.37554263]
[1728365544239,6.9774,143.32,143.27,8.37554263]
[1728365545317,6.9774,143.32,143.27,23.776884]
[1728365545318,6.9778,143.32,143.27,23.776884]
[1728365545519,6.9779,143.31,143.26,7.10569]
[1728365547237,6.9783,143.3,143.26,23.776884]
[1728365547652,6.9788,143.29,143.26,23.776884]
[1728365548349,6.9788,143.29,143.24,13.6332]
[1728365549114,6.9794,143.28,143.24,6.652]
[1728365549869,6.9798,143.27,143.24,6.652]
[1728365550140,6.9798,143.27,143.23,0.12549]
[1728365550621,6.9807,143.26,143.22,15.0301]
[1728365551019,6.9807,143.26,143.23,1.3961083]
[1728365551635,6.9807,143.26,143.22,15.0301]
[1728365552244,6.9807,143.26,143.23,23.776884]
[1728365552449,50.2814,143.3,143.18,16.2507]
[1728365552632,17.4528,143.25,143.18,16.2507]
[1728365552828,6.9843,143.18,143.13,29.7563]
[1728365553153,17.4528,143.25,143.17,6.9846]
[1728365553154,6.9822,143.23,143.17,6.9846]
[1728365553444,0.12549,143.27,143.16,17.4619]
[1728365553649,17.4484,143.28,143.16,17.4619]
[1728365554443,17.4484,143.28,143.17,24.027864]
[1728365555032,6.9824,143.22,143.17,31.012464]
[1728365559226,6.9828,143.21,143.17,31.012464]
[1728365561449,6.9818,143.23,143.19,23.902374]
[1728365561756,6.21501,143.29,143.19,30.885874]
[1728365561959,17.4476,143.29,143.22,0.12549]
[1728365562246,6.9799,143.27,143.22,32.28056661]
[1728365564331,6.9799,143.27,143.22,30.884474]
[1728365564932,15.3891,143.3,143.22,23.902374]
[1728365565141,6.9813,143.24,143.21,23.776884]
[1728365565332,6.9817,143.23,143.19,28.4349]
[1728365565654,6.9817,143.23,143.2,1.39637832]
[1728365566432,6.9817,143.23,143.2,1.39635994]
[1728365566935,6.9813,143.24,143.21,23.776884]
[1728365567141,17.449,143.28,143.21,23.776884]
[1728365567444,6.9814,143.24,143.2,23.776884]
[1728365567948,6.9814,143.24,143.21,0.12549]
[1728365569959,6.9814,143.24,143.2,30.759884]
[1728365569960,17.449,143.28,143.2,23.776884]
[1728365570146,6.9821,143.23,143.2,23.776884]
[1728365570445,6.9823,143.22,143.2,23.776884]
[1728365570758,6.9831,143.21,143.16,40.9561]
[1728365571130,6.9835,143.2,143.16,33.9713]
[1728365571342,6.9835,143.2,143.16,40.9564]
[1728365571857,33.9939,143.24,143.16,40.9564]
[1728365572121,6.9828,143.21,143.16,40.9564]
[1728365572739,6.9828,143.21,143.17,23.776884]
[1728365574052,33.9939,143.24,143.16,33.9713]
[1728365574260,6.9837,143.19,143.16,16.5091]
[1728365575279,6.9833,143.2,143.17,1.39673481]
[1728365576044,6.9829,143.21,143.17,1.39673481]
[1728365576851,6.9823,143.22,143.18,8.38057003]
[1728365577164,6.9819,143.23,143.19,23.776884]
[1728365577548,6.9823,143.22,143.18,30.886374]
[1728365578564,6.9818,143.23,143.18,30.886374]
[1728365579549,16.5402,143.24,143.18,30.886374]
[1728365579746,16.5402,143.24,143.18,23.776884]
[1728365579945,6.9832,143.2,143.17,17.58679]
[1728365580153,6.9832,143.2,143.17,23.902374]
[1728365581470,6.9832,143.2,143.17,23.776884]
[1728365581664,6.9837,143.19,143.16,23.776884]
[1728365582662,6.9829,143.21,143.17,7.10999]
[1728365582847,16.5402,143.24,143.18,23.902374]
[1728365583159,16.5402,143.24,143.19,23.776884]
[1728365583160,6.9823,143.22,143.19,23.776884]
[1728365584272,16.5984,143.28,143.19,23.776884]
[1728365584567,6.9809,143.25,143.21,6.9827]
[1728365584862,6.9809,143.25,143.22,1.39618899]
[1728365585442,16.5984,143.28,143.22,23.776884]
[1728365585645,6.9804,143.26,143.22,23.776884]
[1728365585860,6.9808,143.25,143.22,23.776884]
[1728365586254,6.9826,143.22,143.19,15.0746]
[1728365586469,6.9831,143.21,143.18,20.12549]
[1728365586859,17.4525,143.25,143.18,0.12549]
[1728365587044,6.9823,143.22,143.18,0.12549]
[1728365587744,6.9823,143.22,143.18,24.027864]
[1728365587951,17.4525,143.25,143.17,17.4613]
[1728365588369,6.9832,143.2,143.16,23.03489]
[1728365589145,6.9832,143.2,143.17,23.776884]
[1728365589342,6.9832,143.2,143.15,13.6289]
[1728365590816,6.9832,143.2,143.16,24.027864]
[1728365591096,6.9829,143.21,143.17,6.9846]
[1728365591283,6.9829,143.21,143.18,23.776884]
[1728365591461,23.4925,143.25,143.17,23.776884]
[1728365591462,6.9833,143.2,143.17,23.776884]
[1728365592265,6.9842,143.19,143.16,23.902374]
[1728365592771,6.9842,143.19,143.16,23.776884]
[1728365594401,6.9842,143.19,143.14,17.4645]
[1728365594614,6.9842,143.19,143.15,45.17370366]
[1728365594757,16.6176,143.22,143.13,16.6238]
[1728365594961,6.9857,143.15,143.12,20.0]
[1728365595191,6.9848,143.17,143.13,6.9866]
[1728365595357,6.9848,143.17,143.14,1.39696576]
[1728365596783,6.9848,143.17,143.13,6.9866]
[1728365597774,6.9855,143.16,143.13,23.776884]
[1728365597939,6.986,143.15,143.11,24.4556]
[1728365598071,17.46,143.19,143.09,6.9885]
[1728365598072,6.9866,143.14,143.09,6.9885]
[1728365598304,6.9867,143.13,143.08,31.1099]
[1728365598578,6.9867,143.13,143.08,24.4605]
[1728365598973,6.9867,143.13,143.09,6.9885]
[1728365599764,6.9867,143.13,143.1,23.776884]
[1728365600171,6.9867,143.13,143.11,1.39734712]
[1728365600890,6.9867,143.13,143.1,23.776884]
[1728365601413,6.9877,143.11,143.06,23.2325338]
[1728365601559,6.9872,143.12,143.08,6.9889]
[1728365601897,6.9872,143.12,143.07,31.017264]
[1728365602976,33.6587,143.15,143.09,23.776884]
[1728365603182,6.987,143.13,143.09,23.776884]
[1728365603483,6.9872,143.12,143.09,23.776884]
[1728365604181,6.9867,143.13,143.09,23.776884]
[1728365604883,6.9873,143.12,143.08,6.989]
[1728365605185,6.9873,143.12,143.09,23.776884]
[1728365605361,6.9873,143.12,143.08,23.776884]
[1728365606684,6.9877,143.11,143.08,23.776884]
[1728365608390,6.9877,143.11,143.07,17.4734]
[1728365608570,6.9887,143.09,143.06,3.38e-05]
[1728365608974,6.9895,143.08,143.06,3.38e-05]
[1728365609181,17.4682,143.12,143.06,3.38e-05]
[1728365609562,6.9892,143.08,143.06,3.38e-05]
[1728365610479,6.9895,143.07,143.06,3.38e-05]
[1728365611732,22.114,143.08,143.06,3.38e-05]
[1728365612184,6.988,143.11,143.06,6.9899338]
[1728365612498,6.9884,143.1,143.06,3.38e-05]
[1728365612665,6.9887,143.09,143.06,3.38e-05]
[1728365612867,6.9891,143.08,143.06,3.38e-05]
[1728365614290,15.3013,143.12,143.06,3.38e-05]
[1728365614473,6.9882,143.1,143.06,3.38e-05]
[1728365614900,6.9888,143.09,143.06,3.38e-05]
[1728365615102,17.4669,143.13,143.06,3.38e-05]
[1728365615293,6.9882,143.1,143.06,28.38759554]
[1728365616001,6.9882,143.1,143.06,3.38e-05]
[1728365616293,6.9882,143.1,143.06,1.39777748]
[1728365617580,6.9886,143.09,143.06,3.38e-05]
[1728365617779,17.4669,143.13,143.06,3.38e-05]
[1728365617981,6.9892,143.08,143.06,3.38e-05]
[1728365620393,0.25098,143.13,143.06,3.38e-05]
[1728365620696,6.9895,143.07,143.06,3.38e-05]
[1728365633386,17.4695,143.11,143.06,3.38e-05]
[1728365633387,6.9892,143.08,143.06,3.38e-05]
[1728365636006,17.4695,143.11,143.06,3.38e-05]
[1728365636205,6.9891,143.08,143.06,3.38e-05]
[1728365637387,6.9895,143.07,143.06,3.38e-05]
[1728365641750,22.93618,143.07,143.06,3.38e-05]
[1728365642591,28.99339622,143.07,143.06,3.38e-05]
[1728365643112,35.25249622,143.07,143.06,3.38e-05]
[1728365643357,35.00151622,143.07,143.06,3.38e-05]
[1728365643822,35.12700622,143.07,143.06,3.38e-05]
[1728365644207,59.02938022,143.07,143.06,3.38e-05]
[1728365644399,6.992,143.02,143.01,10.4476584]
[1728365646011,13.04645449,143.02,143.01,10.4476584]
[1728365646200,6.992,143.02,143.01,10.4476584]
[1728365647020,13.04581118,143.02,143.01,10.4476584]
[1728365647416,6.992,143.02,143.01,10.4476584]
[1728365651710,6.9916,143.03,143.01,10.4476584]
[1728365652434,15.6957,143.07,143.01,10.4476584]
[1728365652637,12.85803953,143.1,143.02,38.31977542]
[1728365652936,17.4692,143.11,143.03,37.73982183]
[1728365653236,6.9896,143.07,143.04,23.776884]
[1728365654317,6.9896,143.07,143.05,1.39792237]
[1728365654632,17.4692,143.11,143.04,23.776884]
[1728365654813,6.06732777,143.1,143.04,23.776884]
[1728365655020,6.06732777,143.09,143.04,23.776884]
[1728365655233,6.9897,143.07,143.03,23.902374]
[1728365656420,6.9897,143.07,143.03,30.893674]
[1728365656628,6.9892,143.08,143.04,0.25098]
[1728365657234,6.9887,143.09,143.04,7.24158]
[1728365657523,6.9887,143.09,143.06,23.776884]
[1728365657622,6.9887,143.09,143.07,1.39771791]
[1728365658121,6.9878,143.11,143.07,1.39771791]
[1728365658436,6.9873,143.12,143.07,8.38711791]
[1728365658637,6.07434401,143.11,143.08,23.776884]
[1728365658819,6.9873,143.12,143.09,1.39750164]
[1728365659335,6.9873,143.12,143.08,23.776884]
[1728365659541,17.4644,143.15,143.08,23.776884]
[1728365659738,6.9877,143.11,143.08,23.776884]
[1728365660122,6.989,143.09,143.07,6.2705]
[1728365660326,6.9895,143.08,143.04,20.0]
[1728365660746,6.9887,143.09,143.04,26.991]
[1728365661067,6.9887,143.09,143.05,1.39778724]
[1728365661754,6.9887,143.09,143.05,24.027864]
[1728365662121,6.9887,143.09,143.05,31.018264]
[1728365664149,6.9887,143.09,143.05,24.027864]
[1728365664349,6.9867,143.13,143.08,20.0]
[1728365664553,58.25857411,143.18,143.1,6.988]
[1728365664554,6.07815516,143.12,143.1,6.988]
[1728365664851,6.9857,143.15,143.11,1.39729353]
[1728365665030,6.07972535,143.14,143.1,7.11349]
[1728365665233,6.9857,143.15,143.11,23.902374]
[1728365665929,32.5009,143.19,143.09,22.9596]
[1728365666138,6.08023569,143.18,143.09,22.9596]
[1728365666320,32.5009,143.19,143.09,22.9596]
[1728365666321,6.9872,143.12,143.09,22.9596]
[1728365666645,6.9867,143.13,143.09,22.9596]
[1728365666850,6.9862,143.14,143.1,23.776884]
[1728365667267,6.9866,143.13,143.09,22.9596]
[1728365667751,6.9872,143.12,143.09,6.6195]
[1728365667929,6.9872,143.12,143.08,23.902374]
[1728365668733,6.9872,143.12,143.09,1.39745311]
[1728365669026,6.9872,143.12,143.08,23.902374]
[1728365670553,6.9876,143.11,143.08,23.902374]
[1728365671239,17.4625,143.17,143.07,43.776884]
[1728365671440,6.9881,143.1,143.07,43.776884]
[1728365671930,6.9876,143.11,143.07,43.776884]
[1728365672126,6.9876,143.11,143.08,1.39759866]
[1728365673753,6.9876,143.11,143.07,43.776884]
[1728365674461,21.61709,143.17,143.05,16.08729]
[1728365674646,6.9886,143.09,143.06,23.776884]
[1728365674848,6.9882,143.1,143.06,25.17460885]
[1728365677461,6.9882,143.1,143.06,23.776884]
[1728365678457,6.9882,143.1,143.06,25.17460667]
[1728365678655,6.9882,143.1,143.06,23.776884]
[1728365679362,6.9882,143.1,143.06,25.17460696]
[1728365680624,17.4651,143.15,143.06,32.16450696]
[1728365680864,6.9877,143.11,143.06,32.16450696]
[1728365681848,6.987,143.13,143.08,30.765884]
[1728365683134,6.9877,143.11,143.07,24.4629]
[1728365683844,6.9877,143.11,143.08,1.39755751]
[1728365684104,6.9877,143.11,143.07,22.1629]
[1728365684105,6.9877,143.11,143.07,15.1734]
[1728365685065,6.9886,143.09,143.05,22.9522]
[1728365686471,6.9886,143.09,143.06,23.776884]
[1728365688464,6.9886,143.09,143.07,1.3977231]
[1728365689373,17.4658,143.14,143.07,1.3977231]
[1728365689575,6.9877,143.11,143.07,8.3871231]
[1728365689951,6.9877,143.11,143.07,6.9894]
[1728365690353,6.9877,143.11,143.06,46.241584]
[1728365690798,6.9877,143.11,143.07,1.39756667]
[1728365691437,6.9872,143.12,143.07,0.25098]
[1728365691654,6.9867,143.13,143.07,13.39428951]
[1728365691855,6.9867,143.13,143.09,6.9884]
[1728365692165,6.9867,143.13,143.08,24.461]
[1728365692577,6.9867,143.13,143.09,31.016364]
[1728365699950,6.9871,143.12,143.09,23.776884]
[1728365700150,6.9871,143.12,143.08,17.4721]
[1728365700461,17.4646,143.15,143.07,6.1853]
[1728365700677,6.9872,143.12,143.08,6.9889]
[1728365701658,6.9872,143.12,143.09,23.776884]
[1728365705385,6.9872,143.12,143.1,1.39738625]
[1728365705763,6.9861,143.15,143.11,25.17424178]
[1728365705979,15.4886,143.17,143.11,25.17424178]
[1728365706170,6.9863,143.14,143.11,25.17424178]
[1728365706371,6.9863,143.14,143.11,23.776884]
[1728365706782,15.4886,143.17,143.09,17.59659]
[1728365706987,6.987,143.13,143.09,17.59659]
[1728365707284,6.987,143.13,143.1,23.776884]
[1728365707588,6.9875,143.12,143.08,27.23988]
[1728365707763,6.9875,143.12,143.09,23.776884]
[1728365708784,6.9866,143.13,143.09,6.9884]
[1728365709665,6.9866,143.13,143.1,25.17420971]
[1728365709865,6.9863,143.14,143.1,32.16220971]
[1728365710482,6.9859,143.15,143.11,0.12549]
[1728365710781,15.4886,143.17,143.12,1.3971505]
[1728365710987,6.9861,143.14,143.12,1.3971505]
[1728365711489,6.9861,143.14,143.11,0.12549]
[1728365712984,6.9861,143.14,143.11,1.52265812]
[1728365713859,6.9861,143.14,143.12,1.39716427]
[1728365714762,6.9861,143.14,143.11,0.12549]
[1728365715859,15.4886,143.17,143.07,6.1853]
[1728365716080,6.9884,143.1,143.07,6.1853]
[1728365716274,6.9869,143.13,143.08,6.9887]
[1728365716665,17.4672,143.13,143.05,22.952]
[1728365716905,6.9887,143.09,143.05,22.9521]
[1728365717066,6.9885,143.1,143.05,22.9521]
[1728365718271,6.9885,143.1,143.06,23.776884]
[1728365720619,17.4672,143.13,143.05,15.9618]
[1728365720620,6.9891,143.08,143.05,15.9618]
[1728365720903,6.9899,143.07,143.03,6.3906]
[1728365721102,6.9896,143.07,143.03,13.3819]
[1728365722087,6.9896,143.07,143.04,1.39789877]
[1728365722304,6.9886,143.09,143.05,32.16528088]
[1728365723077,16.3496,143.11,143.05,25.17478088]
[1728365723299,6.9882,143.1,143.06,6.99]
[1728365723598,6.9882,143.1,143.07,1.39763677]
[1728365723804,6.9872,143.12,143.08,0.25098]
[1728365724104,6.9872,143.12,143.08,24.027864]
[1728365724280,17.4661,143.14,143.07,6.9891]
[1728365724484,6.9877,143.11,143.07,6.9891]
[1728365728029,6.9883,143.1,143.06,0.12549]
[1728365728310,6.9889,143.09,143.06,23.902374]
[1728365728486,6.9889,143.09,143.06,23.776884]
[1728365729999,6.9889,143.09,143.07,1.39768056]
[1728365730311,6.9879,143.11,143.06,43.90989351]
[1728365731198,6.9886,143.09,143.06,24.027864]
[1728365731590,17.4661,143.14,143.06,24.027864]
[1728365731792,6.9882,143.1,143.06,31.017864]
[1728365732488,17.4661,143.14,143.06,24.027864]
[1728365732690,6.9877,143.11,143.07,6.9895]
[1728365733355,6.9881,143.1,143.06,31.017864]
[1728365733816,17.4661,143.14,143.08,23.902374]
[1728365734906,6.10448463,143.13,143.08,23.902374]
[1728365735093,6.9877,143.11,143.08,23.902374]
[1728365735296,6.10448463,143.1,143.08,23.902374]